bitfinex-derivatives/quotes_ETHF0:USTF0_20250316
["timestamp","ask_amount","ask_price","bid_price","bid_amount"]
[1742131502305,1.06018,1886.5,1886.4,1.06019]
[1742131502509,1.06019,1886.4,1886.3,3.2078]
[1742131502705,1.06019,1886.4,1886.3,3.21574428]
[1742131503113,1.06019,1886.4,1885.9,3.2078]
[1742131503114,1.06042,1886.0,1885.9,3.2078]
[1742131504215,1.06053,1885.8,1885.7,3.2078]
[1742131504722,1.06059,1885.7,1885.6,0.00794428]
[1742131504925,2.39739,1885.7,1885.6,0.00794428]
[1742131505120,6.04539,1885.7,1885.6,0.00794428]
[1742131505415,6.04539,1885.7,1885.3,3.2078]
[1742131505416,1.06076,1885.4,1885.3,3.2078]
[1742131505621,1.06076,1885.4,1885.3,4.5826]
[1742131506212,2.39756,1885.4,1885.3,5.64341]
[1742131508015,1.3368,1885.4,1885.3,5.64341]
[1742131508221,0.00794428,1885.5,1885.4,1.06076]
[1742131508419,1.06864428,1885.5,1885.4,2.46076]
[1742131508625,1.06076,1885.4,1885.3,3.2078]
[1742131508925,3.19696,1885.4,1885.3,3.2078]
[1742131510425,2.46936,1885.4,1885.3,4.26861]
[1742131511723,1.06869428,1885.5,1885.4,1.06076]
[1742131511923,1.42634428,1885.5,1885.4,3.18796]
[1742131512127,0.00794428,1885.5,1885.4,3.18796]
[1742131513129,1.06864428,1885.5,1885.4,3.18796]
[1742131514332,1.06864428,1885.5,1885.4,2.1272]
[1742131514531,1.06076,1885.4,1885.3,3.2078]
[1742131514735,1.3685,1885.4,1885.3,5.71181]
[1742131515430,2.42926,1885.4,1885.3,5.71181]
[1742131515632,2.42926,1885.4,1885.3,4.651]
[1742131515828,2.42926,1885.4,1885.3,3.2078]
[1742131516032,1.06081,1885.3,1885.2,0.00794428]
[1742131516235,1.06098,1885.0,1884.9,3.2078]
[1742131516827,2.48708,1885.0,1884.9,3.2078]
[1742131518430,1.06115,1884.7,1884.6,3.8951]
[1742131518628,1.06115,1884.7,1884.6,5.2447]
[1742131519339,1.06115,1884.7,1884.6,6.30591]
[1742131519527,1.4261,1884.8,1884.6,6.30591]
[1742131519728,2.48719,1884.8,1884.7,1.4585]
[1742131520131,2.48719,1884.8,1884.7,2.51965]
[1742131520329,2.48719,1884.8,1884.7,1.4585]
[1742131520836,1.06115,1884.7,1884.6,3.8951]
[1742131521133,2.43755,1884.7,1884.6,5.3536]
[1742131523028,2.43755,1884.7,1884.6,6.41481]
[1742131523429,2.65261,1884.9,1884.6,5.3536]
[1742131523636,2.47249,1884.8,1884.7,1.3625]
[1742131523837,2.47249,1884.8,1884.7,2.42365]
[1742131525840,1.06106,1884.9,1884.8,1.06105]
[1742131526038,2.44043,1885.0,1884.9,1.06104]
[1742131526334,1.06089,1885.2,1885.1,1.06086]
[1742131526543,1.73121,1885.4,1885.1,3.2078]
[1742131526744,2.44021,1885.4,1885.3,4.26861]
[1742131526942,2.44021,1885.4,1885.3,3.2078]
[1742131527145,2.44021,1885.4,1885.3,5.72821]
[1742131528043,1.06869428,1885.5,1885.4,1.06076]
[1742131528244,1.06869428,1885.5,1885.4,1.4596]
[1742131528543,1.06869428,1885.5,1885.4,2.52036]
[1742131529044,2.40659428,1885.5,1885.4,2.52036]
[1742131529743,0.00794428,1885.5,1885.4,2.52036]
[1742131530044,1.06055,1885.8,1885.7,1.06054]
[1742131530244,1.06059,1885.7,1885.6,4.2684]
[1742131530445,1.06059,1885.7,1885.6,5.6717]
[1742131531347,1.06059,1885.7,1885.6,4.6111]
[1742131531646,1.06059,1885.7,1885.6,3.2078]
[1742131531847,1.77909,1885.7,1885.6,3.2078]
[1742131532047,1.77909,1885.7,1885.6,4.5872]
[1742131533347,1.77909,1885.7,1885.6,5.64784]
[1742131533543,1.06059,1885.7,1885.6,5.64784]
[1742131533846,2.40642428,1885.8,1885.6,4.5872]
[1742131534053,2.40642428,1885.8,1885.7,1.3794]
[1742131534737,2.40642428,1885.8,1885.6,3.2078]
[1742131534738,1.06059,1885.7,1885.6,3.2078]
[1742131534938,1.0607,1885.5,1885.4,4.6485]
[1742131535851,2.4363,1885.5,1885.4,3.2078]
[1742131536444,1.06076,1885.4,1885.3,0.00794428]
[1742131536639,2.43636,1885.4,1885.3,0.00794428]
[1742131536841,2.43636,1885.4,1885.3,3.21574428]
[1742131537252,1.06076,1885.4,1885.3,5.71722428]
[1742131537554,1.06076,1885.4,1885.3,4.65644428]
[1742131539557,1.06076,1885.4,1885.3,5.71725428]
[1742131539850,1.06076,1885.4,1885.3,3.21574428]
[1742131542642,1.06076,1885.4,1885.3,4.27655428]
[1742131542843,1.06076,1885.4,1885.3,5.66045428]
[1742131543239,1.06076,1885.4,1885.3,4.59964428]
[1742131544051,1.06076,1885.4,1885.3,3.21574428]
[1742131546148,2.48406,1885.4,1885.3,3.21574428]
[1742131548548,2.48406,1885.4,1885.3,4.27655428]
[1742131549360,2.48406,1885.4,1885.3,5.72025428]
[1742131550458,0.00794428,1885.8,1885.3,8.29744428]
[1742131550761,1.4058,1885.5,1885.4,3.83704999]
[1742131550952,1.4058,1885.5,1885.4,7.04484999]
[1742131551558,0.6784,1885.7,1885.6,1.06064]
[1742131551559,1.73904,1885.7,1885.6,1.06064]
[1742131551747,1.4058,1885.7,1885.6,4.26844]
[1742131552258,1.4058,1885.7,1885.6,4.95774]
[1742131552453,1.4058,1885.7,1885.6,5.64171203]
[1742131553158,1.4058,1885.7,1885.6,8.14171203]
[1742131553366,0.00794428,1885.8,1885.7,1.06059]
[1742131553555,0.00794428,1885.8,1885.7,2.47489]
[1742131553862,0.00794428,1885.8,1885.7,3.15886203]
[1742131554058,1.06847428,1885.8,1885.7,3.15886203]
[1742131554450,0.00794428,1885.8,1885.7,3.15886203]
[1742131554965,1.06847428,1885.8,1885.7,3.15886203]
[1742131555155,0.00794428,1885.8,1885.7,3.15886203]
[1742131555555,1.06051,1885.9,1885.7,2.09827203]
[1742131555760,2.44981,1885.9,1885.8,4.2683]
[1742131555968,2.44981,1885.9,1885.8,5.6826]
[1742131556263,2.44981,1885.9,1885.8,6.36657203]
[1742131556859,1.3893,1885.9,1885.8,6.36657203]
[1742131557060,2.44978,1885.9,1885.8,6.36657203]
[1742131557261,0.00794428,1886.0,1885.9,1.06048]
[1742131557560,0.00794428,1886.0,1885.9,6.05208]
[1742131557764,0.00794428,1886.0,1885.9,6.72538]
[1742131557963,1.39624428,1886.0,1885.9,6.72538]
[1742131558165,1.39624428,1886.0,1885.9,7.40935203]
[1742131558564,0.00794428,1886.0,1885.9,7.40935203]
[1742131561561,0.00794428,1886.0,1885.9,7.40938874]
[1742131561763,1.41754428,1886.0,1885.9,7.40938874]
[1742131562371,0.00794428,1886.0,1885.9,7.40938874]
[1742131562554,2.4247,1886.3,1886.2,1.06031]
[1742131562760,2.4247,1886.3,1886.2,4.26811]
[1742131563058,1.3644,1886.3,1886.2,4.26811]
[1742131563567,1.06017,1886.5,1886.4,1.06016]
[1742131563768,1.06017,1886.5,1886.4,4.26796]
[1742131563965,2.04394428,1886.6,1886.5,1.06014]
[1742131564168,0.67954428,1886.6,1886.5,2.41584]
[1742131564562,1.73962428,1886.6,1886.5,2.41584]
[1742131565466,0.67954428,1886.6,1886.5,2.41584]
[1742131565671,1.06802428,1886.6,1886.5,2.41584]
[1742131565871,0.00794428,1886.6,1886.5,2.41584]
[1742131566168,1.06802428,1886.6,1886.5,2.41584]
[1742131567067,1.06014,1886.5,1886.4,3.2078]
[1742131568173,1.06014,1886.5,1886.4,4.26799]
[1742131568471,0.00794428,1886.6,1886.4,3.2078]
[1742131568775,0.00794428,1886.6,1886.5,1.06014]
[1742131569264,1.06014,1886.5,1886.4,5.66135]
[1742131571972,0.00794428,1886.6,1886.5,1.06014]
[1742131572172,0.00794428,1886.6,1886.5,2.51804]
[1742131572375,1.06802428,1886.6,1886.5,2.51804]
[1742131572667,0.00794428,1886.6,1886.5,2.51804]
[1742131574078,0.00794428,1886.6,1886.5,6.15304]
[1742131579175,1.06802428,1886.6,1886.5,6.15304]
[1742131579782,0.00794428,1886.6,1886.5,6.15304]
[1742131580280,1.06802428,1886.6,1886.5,6.15304]
[1742131581378,0.00794428,1886.6,1886.5,6.15304]
[1742131581780,1.42734428,1886.6,1886.5,6.15304]
[1742131583189,2.48742428,1886.6,1886.5,6.15304]
[1742131583380,2.48742428,1886.6,1886.5,6.83616449]
[1742131583881,1.42734428,1886.6,1886.5,6.83616449]
[1742131586582,35.69039,1887.2,1886.9,1.05986]
[1742131586583,2.64938,1887.2,1886.9,1.05986]
[1742131586889,2.64938,1887.2,1886.9,4.26771]
[1742131586890,1.05989,1887.0,1886.9,4.26771]
[1742131588589,1.05989,1887.0,1886.9,3.2078]
[1742131588901,1.05989,1887.0,1886.9,4.26771]
[1742131589785,3.13979,1887.0,1886.9,4.26771]
[1742131590689,3.13979,1887.0,1886.9,3.2078]
[1742131591087,1.05991,1886.9,1886.8,2.39752]
[1742131591397,1.3856,1886.9,1886.8,2.39752]
[1742131591690,2.44551,1886.9,1886.8,2.39752]
[1742131592390,2.44551,1886.9,1886.8,3.082082]
[1742131592690,2.44551,1886.9,1886.8,0.684562]
[1742131593086,2.44551,1886.9,1886.8,1.05997]
[1742131593286,1.05997,1886.8,1886.7,4.26778]
[1742131593486,2.39847,1886.8,1886.7,4.26778]
[1742131593686,2.39847,1886.8,1886.7,3.2078]
[1742131593882,2.39847,1886.8,1886.7,4.26783]
[1742131594085,2.39847,1886.8,1886.7,3.89302363]
[1742131594883,2.39847,1886.8,1886.7,3.2078]
[1742131596188,1.06008,1886.6,1886.5,2.48099]
[1742131596494,1.06008,1886.6,1886.5,5.68879]
[1742131596994,3.11278,1886.6,1886.5,5.68879]
[1742131597688,2.0527,1886.6,1886.5,5.68879]
[1742131599093,2.0527,1886.6,1886.5,6.37367999]
[1742131599094,1.3571,1886.6,1886.5,6.37367999]
[1742131600291,2.41718,1886.6,1886.5,6.37367999]
[1742131600598,1.3571,1886.6,1886.5,6.37367999]
[1742131600797,2.41718,1886.6,1886.5,6.37367999]
[1742131601391,1.3571,1886.6,1886.5,6.37367999]
[1742131601695,2.41718,1886.6,1886.5,6.37367999]
[1742131602192,1.3571,1886.6,1886.5,6.37367999]
[1742131602896,2.41718,1886.6,1886.5,6.37367999]
[1742131603795,1.3571,1886.6,1886.5,6.37367999]
[1742131604496,2.41718,1886.6,1886.5,6.37367999]
[1742131604895,1.3571,1886.6,1886.5,6.37367999]
[1742131605491,2.41718,1886.6,1886.5,6.37367999]
[1742131605792,1.3571,1886.6,1886.5,6.37367999]
[1742131607498,1.3571,1886.6,1886.5,3.16587999]
[1742131607697,1.3571,1886.6,1886.5,6.37367999]
[1742131610697,2.41718,1886.6,1886.5,6.37367999]
[1742131610909,1.3571,1886.6,1886.5,6.37367999]
[1742131611402,2.41718,1886.6,1886.5,6.37367999]
[1742131611788,1.3571,1886.6,1886.5,6.37367999]
[1742131612101,2.41718,1886.6,1886.5,6.37367999]
[1742131613897,2.41718,1886.6,1886.5,3.89268999]
[1742131614298,2.41718,1886.6,1886.5,4.95282999]
[1742131615504,1.3571,1886.6,1886.5,4.95282999]
[1742131616212,0.6956,1886.8,1886.6,1.06003]
[1742131616401,0.6956,1886.8,1886.6,3.87763]
[1742131616402,1.3845,1886.7,1886.6,3.87763]
[1742131616609,2.44453,1886.7,1886.6,7.08543]
[1742131616910,1.3845,1886.7,1886.6,7.08543]
[1742131617106,2.44453,1886.7,1886.6,7.77031999]
[1742131619097,2.44453,1886.7,1886.6,7.09501999]
[1742131619298,2.44453,1886.7,1886.6,3.89268999]
[1742131620201,2.44453,1886.7,1886.6,4.95276999]
[1742131622018,1.3845,1886.7,1886.6,4.95276999]
[1742131622309,1.3845,1886.7,1886.6,6.34356999]
[1742131623213,0.6745,1886.9,1886.8,1.05997]
[1742131623412,0.00794428,1887.1,1887.0,1.05986]
[1742131624207,0.00794428,1887.1,1887.0,4.26766]
[1742131624717,0.00794428,1887.1,1887.0,5.61546]
[1742131624904,0.00794428,1887.1,1887.0,6.30034999]
[1742131628416,1.41194428,1887.1,1887.0,6.30034999]
[1742131630415,2.47174428,1887.1,1887.0,6.30034999]
[1742131630921,2.47174428,1887.1,1887.0,3.2078]
[1742131632118,2.47174428,1887.1,1887.0,4.6214]
[1742131634224,2.47174428,1887.1,1887.0,3.2078]
[1742131637417,1.06003,1886.7,1886.6,3.2078]
[1742131637827,1.06014,1886.5,1886.4,3.2078]
[1742131638517,1.74824,1886.5,1886.4,3.2078]
[1742131639125,1.06019,1886.4,1886.3,0.00794428]
[1742131639329,1.06036,1886.1,1886.0,3.2078]
[1742131639834,1.06036,1886.1,1886.0,3.88726949]
[1742131640219,2.50796,1886.1,1886.0,3.88726949]
[1742131640821,2.65746428,1887.1,1886.1,2.65091]
[1742131641020,1.05991,1886.9,1886.8,3.2078]
[1742131641232,1.05991,1886.9,1886.8,4.26776]
[1742131641628,2.42351,1886.9,1886.8,4.26776]
[1742131641833,1.3636,1886.9,1886.8,4.26776]
[1742131642022,0.6908,1887.0,1886.8,4.26776]
[1742131642227,0.6908,1887.0,1886.9,2.51901]
[1742131642228,1.3636,1887.0,1886.9,2.51901]
[1742131644532,0.00794428,1887.1,1887.0,1.05986]
[1742131644829,0.00794428,1887.1,1887.0,6.29496]
[1742131645132,0.00794428,1887.1,1887.0,7.28814773]
[1742131646133,0.00794428,1887.1,1887.0,7.28810682]
[1742131646730,1.43034428,1887.1,1887.0,7.28810682]
[1742131647929,1.05947,1887.7,1887.2,2.64932]
[1742131648134,1.05945,1887.8,1887.5,3.2078]
[1742131648332,2.51616,1887.7,1887.6,2.38647]
[1742131649933,2.51616,1887.7,1887.6,1.327]
[1742131650827,1.05952,1887.6,1887.5,4.26733]
[1742131651028,1.05952,1887.6,1887.5,3.2078]
[1742131651029,2.43692,1887.6,1887.5,3.2078]
[1742131651228,3.14032,1887.6,1887.5,4.26738]
[1742131652135,3.14032,1887.6,1887.5,3.2078]
[1742131653426,3.14032,1887.6,1887.5,4.26738]
[1742131653629,3.14032,1887.6,1887.5,5.72418]
[1742131655032,2.0808,1887.6,1887.5,5.72418]
[1742131655232,2.43692,1887.6,1887.5,5.72418]
[1742131656628,2.43692,1887.6,1887.5,4.6646]
[1742131656833,2.43692,1887.6,1887.5,5.72418]
[1742131657028,2.43692,1887.6,1887.5,4.6646]
[1742131657225,2.43692,1887.6,1887.5,3.2078]
[1742131658738,2.43692,1887.6,1887.5,4.26738]
[1742131658941,2.43692,1887.6,1887.5,4.6444]
[1742131660743,2.43692,1887.6,1887.5,3.2078]
[1742131664445,1.05963,1887.4,1887.3,1.3635]
[1742131665345,2.48233,1887.4,1887.3,1.3635]
[1742131665847,2.48233,1887.4,1887.3,2.42319]
[1742131666143,0.6985,1887.5,1887.3,2.42319]
[1742131666144,1.05963,1887.5,1887.4,1.05959]
[1742131666343,1.05963,1887.5,1887.4,3.14089]
[1742131666639,2.49907,1887.6,1887.5,1.05958]
[1742131666943,0.6773,1887.7,1887.6,1.05952]
[1742131667142,1.44744428,1887.8,1887.7,1.05946]
[1742131667341,0.00794428,1887.8,1887.7,2.41346]
[1742131668935,0.00794428,1887.8,1887.7,3.0895581]
[1742131669141,0.00794428,1887.8,1887.7,3.40407279]
[1742131669442,1.06735428,1887.8,1887.7,3.40407279]
[1742131669645,1.06735428,1887.8,1887.7,3.0895581]
[1742131670343,1.06735428,1887.8,1887.7,2.41346]
[1742131670546,2.40615428,1887.8,1887.7,2.41346]
[1742131671250,2.40615428,1887.8,1887.7,2.728758]
[1742131671443,2.40615428,1887.8,1887.7,1.669298]
[1742131671943,2.40615428,1887.8,1887.7,2.728758]
[1742131672339,2.40615428,1887.8,1887.7,3.40662481]
[1742131673143,2.40615428,1887.8,1887.7,2.34716481]
[1742131673748,2.40615428,1887.8,1887.7,3.40662481]
[1742131673947,2.40615428,1887.8,1887.7,3.09132681]
[1742131674247,2.40615428,1887.8,1887.7,1.354]
[1742131674646,3.08545428,1887.8,1887.7,1.354]
[1742131674950,1.05946,1887.7,1887.6,3.2078]
[1742131675248,2.41066,1887.7,1887.6,3.52329275]
[1742131675752,2.41066,1887.7,1887.6,5.26123633]
[1742131675940,2.41066,1887.7,1887.6,6.60523633]
[1742131676349,1.3512,1887.7,1887.6,6.60523633]
[1742131676553,2.41066,1887.7,1887.6,6.60523633]
[1742131678255,1.3512,1887.7,1887.6,6.60523633]
[1742131678760,2.41066,1887.7,1887.6,6.60523633]
[1742131678954,2.41066,1887.7,1887.6,6.60521966]
[1742131680855,2.41066,1887.7,1887.6,6.60522668]
[1742131681455,0.00794428,1887.8,1887.7,1.05946]
[1742131681651,0.00794428,1887.8,1887.7,2.8208431]
[1742131681848,1.34194428,1887.8,1887.7,2.8208431]
[1742131682047,1.34194428,1887.8,1887.7,3.49926668]
[1742131682345,1.34194428,1887.8,1887.7,3.49922138]
[1742131682857,0.00794428,1887.8,1887.7,3.49922138]
[1742131683243,0.00794428,1887.8,1887.7,7.12622138]
[1742131683749,5.826,1888.1,1888.0,1.0593]
[1742131683950,2.46573,1888.2,1888.1,1.05924]
[1742131684348,2.46573,1888.2,1888.1,2.49904]
[1742131684951,0.69424428,1888.3,1888.2,1.05918]
[1742131685151,1.75337428,1888.3,1888.2,6.38398]
[1742131687756,1.75337428,1888.3,1888.2,5.3248]
[1742131688151,1.75337428,1888.3,1888.2,6.38398]
[1742131688456,1.75337428,1888.3,1888.2,4.6476]
[1742131688855,2.46597428,1888.3,1888.2,4.6476]
[1742131689158,2.46597428,1888.3,1888.2,5.70678]
[1742131689351,2.46597428,1888.3,1888.2,4.6476]
[1742131689654,2.46597428,1888.3,1888.2,5.70678]
[1742131690446,1.75337428,1888.3,1888.2,5.70678]
[1742131691360,3.17677428,1888.3,1888.2,5.70678]
[1742131691857,3.17677428,1888.3,1888.2,4.6476]
[1742131692057,3.17677428,1888.3,1888.2,3.2078]
[1742131695957,2.11764428,1888.3,1888.2,4.26698]
[1742131696254,3.17677428,1888.3,1888.2,5.69078]
[1742131696459,2.11764428,1888.3,1888.2,5.69078]
[1742131697147,2.11764428,1888.3,1888.2,6.00595971]
[1742131697654,3.17677428,1888.3,1888.2,6.00595971]
[1742131697861,3.17677428,1888.3,1888.2,6.68360638]
[1742131698760,3.17677428,1888.3,1888.2,6.68355932]
[1742131699750,2.11764428,1888.3,1888.2,6.68355932]
[1742131699955,3.17677428,1888.3,1888.2,6.68355932]
[1742131701651,2.11764428,1888.3,1888.2,6.68355932]
[1742131702652,0.00794428,1888.3,1888.2,6.68355932]
[1742131702858,0.00794428,1888.3,1888.2,6.68342136]
[1742131703154,0.00794428,1888.3,1888.2,6.68341321]
[1742131704358,1.34554428,1888.3,1888.2,6.68341321]
[1742131705259,0.00794428,1888.3,1888.2,6.68341321]
[1742131706963,1.3983,1888.5,1888.2,6.68341321]
[1742131706964,1.3983,1888.5,1888.4,1.05907]
[1742131707161,0.6748,1888.6,1888.5,1.05902]
[1742131707358,0.6748,1888.6,1888.5,2.81826036]
[1742131707564,2.0731,1888.6,1888.5,3.50846036]
[1742131708065,2.0731,1888.6,1888.5,4.18610703]
[1742131708468,3.13206,1888.6,1888.5,3.87106667]
[1742131708964,3.13206,1888.6,1888.5,2.1344]
[1742131709163,1.05902,1888.5,1888.4,4.26685]
[1742131709365,2.46772,1888.5,1888.4,4.58206651]
[1742131709669,2.46772,1888.5,1888.4,3.52299651]
[1742131709871,2.46772,1888.5,1888.4,4.20064328]
[1742131710061,2.46772,1888.5,1888.4,4.94451677]
[1742131710262,2.46772,1888.5,1888.4,5.25973517]
[1742131710571,2.46772,1888.5,1888.4,5.25972444]
[1742131710870,0.6748,1888.6,1888.5,1.05902]
[1742131711070,2.0247,1888.6,1888.5,3.51708297]
[1742131711266,0.00524677,1888.7,1888.6,1.05896]
[1742131711471,0.00524677,1888.7,1888.6,6.02012297]
[1742131711673,0.00524677,1888.7,1888.6,6.69776974]
[1742131712265,0.00524677,1888.7,1888.6,6.69778114]
[1742131713172,1.35514677,1888.7,1888.6,6.69778114]
[1742131713863,2.05664677,1888.7,1888.6,6.69778114]
[1742131714171,3.11554677,1888.7,1888.6,5.63882114]
[1742131714365,3.78414677,1888.7,1888.6,6.69778114]
[1742131715073,3.78414677,1888.7,1888.6,6.69770927]
[1742131715972,2.05664677,1888.7,1888.6,6.69770927]
[1742131716862,3.11554677,1888.7,1888.6,6.69770927]
[1742131717062,3.11554677,1888.7,1888.6,6.38270677]
[1742131717263,3.11554677,1888.7,1888.6,6.69747978]
[1742131719066,2.05664677,1888.7,1888.6,6.69747978]
[1742131719271,2.05664677,1888.7,1888.6,6.38270677]
[1742131719569,0.00524677,1888.7,1888.6,6.69725487]
[1742131719773,1.34964677,1888.7,1888.6,6.69725487]
[1742131720276,1.34964677,1888.7,1888.6,6.38270677]
[1742131720572,1.34964677,1888.7,1888.6,6.6972135]
[1742131720771,1.34964677,1888.7,1888.6,6.38270677]
[1742131721568,0.00524677,1888.7,1888.6,6.69719609]
[1742131721777,0.00524677,1888.7,1888.6,6.38270677]
[1742131722274,1.38544677,1888.7,1888.6,6.38270677]
[1742131722473,1.38544677,1888.7,1888.6,6.69716499]
[1742131722667,0.00524677,1888.7,1888.6,6.69716499]
[1742131722868,0.00524677,1888.7,1888.6,7.34976499]
[1742131726478,0.00524677,1888.7,1888.6,6.69738959]
[1742131727177,0.66984677,1888.7,1888.6,6.69738959]
[1742131727378,1.72874677,1888.7,1888.6,6.69738959]
[1742131727674,0.66984677,1888.7,1888.6,6.69738959]
[1742131727978,0.66984677,1888.7,1888.6,6.69739905]
[1742131728478,2.12194677,1888.7,1888.6,6.69744124]
[1742131728680,0.00524677,1888.7,1888.6,6.69744124]
[1742131730373,0.00524677,1888.7,1888.6,6.38270677]
[1742131730674,0.00524677,1888.7,1888.6,6.69746389]
[1742131732483,0.00524677,1888.7,1888.6,6.69758976]
[1742131733384,0.00524677,1888.7,1888.6,6.69771532]
[1742131733572,0.00524677,1888.7,1888.6,6.69772409]
[1742131733781,0.7292,1889.0,1888.9,1.05879]
[1742131733977,0.7292,1889.0,1888.9,8.20360732]
[1742131734681,2.1769,1889.0,1888.9,10.19865409]
[1742131735277,0.6628,1889.2,1889.1,1.05868]
[1742131735482,1.3424,1889.2,1889.1,4.26648]
[1742131735683,2.40102,1889.2,1889.1,4.26648]
[1742131736186,2.40102,1889.2,1889.1,3.2078]
[1742131738587,3.82382,1889.2,1889.1,3.2078]
[1742131739096,1.05868,1889.1,1889.0,1.06664428]
[1742131739301,2.48148,1889.1,1889.0,4.58982823]
[1742131739504,2.48148,1889.1,1889.0,5.26750424]
[1742131740600,2.48148,1889.1,1889.0,5.26764713]
[1742131741199,2.48148,1889.1,1889.0,4.20894713]
[1742131741399,2.48148,1889.1,1889.0,4.95216029]
[1742131741804,2.48148,1889.1,1889.0,3.89342029]
[1742131742001,2.48148,1889.1,1889.0,4.95216029]
[1742131742207,2.48148,1889.1,1889.0,3.89342029]
[1742131742503,2.48148,1889.1,1889.0,4.95216029]
[1742131742803,2.48148,1889.1,1889.0,4.27448428]
[1742131743206,2.48148,1889.1,1889.0,4.59027394]
[1742131743504,2.48148,1889.1,1889.0,3.53153394]
[1742131743704,2.48148,1889.1,1889.0,4.2101087]
[1742131744005,2.48148,1889.1,1889.0,5.2688487]
[1742131744301,2.48148,1889.1,1889.0,6.58750668]
[1742131744501,2.48148,1889.1,1889.0,5.26880668]
[1742131744696,2.48148,1889.1,1889.0,5.26880959]
[1742131745098,2.48148,1889.1,1889.0,4.21006959]
[1742131745296,2.48148,1889.1,1889.0,5.26880959]
[1742131745493,2.48148,1889.1,1889.0,4.21006959]
[1742131745690,2.48148,1889.1,1889.0,3.89431904]
[1742131746293,2.48148,1889.1,1889.0,3.21574428]
[1742131746498,2.48148,1889.1,1889.0,0.00794428]
[1742131748898,3.9228,1889.1,1888.6,4.6183]
[1742131749204,1.05902,1888.5,1888.4,7.88684]
[1742131749392,1.05902,1888.5,1888.4,7.14357552]
[1742131749598,1.05902,1888.5,1888.4,3.52357552]
[1742131749901,1.05902,1888.5,1888.4,5.99314552]
[1742131750100,1.05902,1888.5,1888.4,4.93407552]
[1742131750303,1.05902,1888.5,1888.4,4.20219871]
[1742131750605,1.05902,1888.5,1888.4,3.88642319]
[1742131750801,2.48105428,1888.6,1888.4,4.20211903]
[1742131751101,2.48105428,1888.6,1888.5,2.40942]
[1742131751301,1.06695428,1888.6,1888.5,1.66594013]
[1742131751807,1.06695428,1888.6,1888.5,2.34456332]
[1742131752002,1.06695428,1888.6,1888.5,1.66594013]
[1742131752003,1.75315428,1888.6,1888.5,1.66594013]
[1742131752304,1.75315428,1888.6,1888.5,2.72494892]
[1742131752504,0.00794428,1888.6,1888.5,2.72494892]
[1742131753505,0.00794428,1888.6,1888.5,3.38984122]
[1742131754300,0.00794428,1888.6,1888.5,3.38954902]
[1742131754907,1.06690428,1888.6,1888.5,3.38954902]
[1742131755109,1.06690428,1888.6,1888.5,2.33052902]
[1742131755406,1.06690428,1888.6,1888.5,0.6648923]
[1742131756005,1.06690428,1888.6,1888.5,3.1171123]
[1742131756308,1.06690428,1888.6,1888.5,2.45222]
[1742131757705,1.05902,1888.5,1888.4,3.2078]
[1742131757898,2.41632,1888.5,1888.4,4.26687]
[1742131758205,2.41632,1888.5,1888.4,3.2078]
[1742131758511,2.41632,1888.5,1888.4,4.5827]
[1742131759616,2.41632,1888.5,1888.4,5.64177]
[1742131760013,2.41632,1888.5,1888.4,4.5827]
[1742131760203,2.41632,1888.5,1888.4,5.64177]
[1742131761119,2.41632,1888.5,1888.4,4.5827]
[1742131762116,2.41632,1888.5,1888.4,3.2078]
[1742131763919,2.41632,1888.5,1888.4,4.5748]
[1742131764215,2.41632,1888.5,1888.4,1.367]
[1742131764617,1.05907,1888.4,1888.3,0.00794428]
[1742131764810,1.05907,1888.4,1888.3,1.37494428]
[1742131765115,1.05907,1888.4,1888.3,0.00794428]
[1742131765715,1.05907,1888.4,1888.3,1.45184428]
[1742131768316,1.05913,1888.3,1888.2,3.2078]
[1742131768815,5.826,1888.3,1887.9,3.8679]
[1742131769021,1.0593,1888.0,1887.9,4.5817]
[1742131770720,2.5049,1888.0,1887.9,4.5817]
[1742131773419,1.4456,1888.0,1887.9,5.64105]
[1742131773626,5.826,1888.3,1888.2,1.05918]
[1742131773926,8.31083,1888.3,1888.2,4.26698]
[1742131774216,7.2517,1888.3,1888.2,4.26698]
[1742131774422,5.826,1888.3,1888.2,4.26698]
[1742131775231,1.05906,1888.5,1888.2,3.2078]
[1742131775519,1.05906,1888.5,1888.4,4.26687]
[1742131775918,2.40336,1888.5,1888.4,5.62237]
[1742131776921,2.40336,1888.5,1888.4,4.5633]
[1742131777421,2.40336,1888.5,1888.4,3.2078]
[1742131777620,1.05913,1888.3,1888.2,3.2078]
[1742131778217,2.47193,1888.3,1888.2,3.2078]
[1742131778733,8.29793,1888.3,1888.2,3.2078]
[1742131781523,1.05924,1888.1,1888.0,1.373]
[1742131782124,2.46334,1888.1,1888.0,1.373]
[1742131783526,3.18294,1888.1,1888.0,1.373]
[1742131784228,6.88516,1888.3,1888.2,1.05918]
[1742131784426,8.29746,1888.3,1888.2,1.05918]
[1742131784622,1.4123,1888.3,1888.1,6.40299]
[1742131784928,2.47148,1888.3,1888.2,1.4605]
[1742131785331,1.4123,1888.3,1888.2,2.51968]
[1742131785531,0.7146,1888.4,1888.2,1.4605]
[1742131785733,3.18597,1888.4,1888.3,2.51963]
[1742131788735,3.18597,1888.4,1888.3,5.72743]
[1742131790031,3.18597,1888.4,1888.3,4.6683]
[1742131791629,1.05913,1888.3,1888.2,1.3384]
[1742131791826,2.47333,1888.3,1888.2,1.3384]
[1742131792036,2.47333,1888.3,1888.2,2.39758]
[1742131792238,2.47333,1888.3,1888.2,5.60538]
[1742131792638,2.47333,1888.3,1888.2,4.5462]
[1742131794336,1.05913,1888.3,1888.2,5.92034585]
[1742131794536,2.39103,1888.3,1888.2,5.92034585]
[1742131794732,1.3319,1888.3,1888.2,5.92034585]
[1742131795140,1.74061,1888.4,1888.3,1.05913]
[1742131795442,1.05905,1888.5,1888.4,1.05904]
[1742131795638,2.39095,1888.5,1888.4,4.98314]
[1742131796034,1.74842428,1888.6,1888.5,1.05902]
[1742131796234,3.08842428,1888.6,1888.5,2.48122]
[1742131796741,2.02944428,1888.6,1888.5,2.79609089]
[1742131797242,3.08840428,1888.6,1888.5,2.79609089]
[1742131797440,0.68944428,1888.6,1888.5,2.79609089]
[1742131797640,0.00794428,1888.6,1888.5,2.79609089]